fUST/lending_fUST_20250815
["ID","MTS","AMOUNT","RATE_DAILY","PERIOD"]
[379311955,1755251439905,-155.108358,0.00024,2]
[379311957,1755251439914,-155.108358,0.00024,2]
[379311959,1755251439924,-216.77912109,0.00024,7]
[379311960,1755251439934,-168.0,0.00024,7]
[379311962,1755251439944,-843.47195277,0.00024,7]
[379311964,1755251439953,-232.08354597,0.00024,7]
[379311966,1755251439962,-160.0,0.00024,7]
[379311968,1755251439972,-546.0,0.00024009,2]
[379311970,1755251439982,-660.0,0.00024016,2]
[379311972,1755251439991,-14930.37073862,0.00024029,2]
[379311974,1755251440002,-1209.74,0.00024064,2]
[379311976,1755251440011,-166.5,0.00024069,2]
[379311978,1755251440020,-18273.66182755,0.00024158,2]
[379311980,1755251440030,-2500.0,0.00024258,2]
[379311982,1755251440039,-2604.28536077,0.00024258,2]
[379311984,1755251440049,-2500.0,0.00024258,2]
[379311986,1755251440058,-2500.0,0.00024258,2]
[379311988,1755251440068,-546.0,0.00024283,2]
[379311990,1755251440078,-151.0,0.00024289,7]
[379311992,1755251440087,-160.0,0.000243,7]
[379311994,1755251440097,-2000.0,0.00024349,2]
[379311996,1755251440107,-450.0,0.00024349,2]
[379311998,1755251440117,-2000.0,0.00024349,2]
[379311999,1755251440126,-259.61176669,0.00024349,2]
[379312002,1755251440138,-11402.18,0.000244,7]
[379312003,1755251440148,-151.0,0.000244,7]
[379312006,1755251440158,-1000.0,0.00024421,2]
[379312007,1755251440168,-151.0,0.00024466,7]
[379312009,1755251440178,-1000.25632499,0.000245,40]
[379312011,1755251440187,-659.82930762,0.000245,2]
[379312012,1755251440198,-151.0,0.000245,10]
[379312013,1755251440208,-250.0,0.00024521,2]
[379312014,1755251440218,-250.0,0.00024521,2]
[379312015,1755251440228,-14930.37073862,0.00024545,2]
[379312016,1755251440238,-546.0,0.00024557,2]
[379312017,1755251440248,-760.0,0.00024564,2]
[379312018,1755251440259,-151.0,0.000246,7]
[379312019,1755251440270,-664.75031037,0.00024624,2]
[379312020,1755251440281,-151.0,0.00024658,7]
[379312021,1755251440292,-151.0,0.00024658,7]
[379312022,1755251440303,-151.0,0.00024658,7]
[379312023,1755251440315,-151.0,0.00024658,7]
[379312024,1755251440326,-151.0,0.00024658,7]
[379312025,1755251440336,-151.0,0.00024658,7]
[379312026,1755251440348,-151.0,0.00024658,7]
[379312027,1755251440360,-280.0,0.00024658,2]
[379312028,1755251440370,-200.0,0.00024658,15]
[379312029,1755251440380,-151.0,0.00024658,2]
[379312030,1755251440393,-644.0,0.00024658,2]
[379312031,1755251440403,-151.0,0.0002466,7]
[379312032,1755251440413,-168.0,0.00024688,7]
[379312033,1755251440422,-554.41665169,0.0002469,10]
[379312034,1755251440432,-307.53,0.000247,7]
[379312035,1755251440442,-216.77912109,0.000247,7]
[379312036,1755251440452,-160.0,0.000247,7]
[379312037,1755251440462,-500.0,0.0002477,2]
[379312038,1755251440472,-150.68302437,0.00024773,2]
[379312039,1755251440482,-12836.53,0.000248,2]
[379312040,1755251440493,-258.06302,0.000248,7]
[379312041,1755251440503,-2997.15365796,0.00024806,2]
[379312042,1755251440512,-3000.0,0.00024806,2]
[379312043,1755251440522,-1218.2584306,0.00024806,2]
[379312044,1755251440532,-200.0,0.0002482,11]
[379312045,1755251440544,-546.0,0.00024831,2]
[379312046,1755251440554,-150.0,0.00024873,2]
[379312047,1755251440563,-2500.0,0.00024897,2]
[379312048,1755251440573,-550.0,0.00024897,2]
[379312049,1755251440583,-2500.0,0.00024897,2]
[379312050,1755251440593,-3848.61991479,0.000249,30]
[379312051,1755251440604,-20463.55,0.000249,7]
[379312052,1755251440614,-1453.8,0.000249,60]
[379312053,1755251440623,-151.0,0.000249,7]
[379312054,1755251440633,-623681.633486,0.000249,2]
[379312055,1755251440643,-13623.09916726,0.000249,2]
[379312056,1755251440653,-151.0,0.00024932,2]
[379312057,1755251440663,-644.0,0.00024932,2]
[379312058,1755251440673,-555.03629106,0.00024969,2]
[379312059,1755251440683,-200.0,0.0002498,30]
[379312060,1755251440693,-510.0,0.00024999,2]
[379312061,1755251440705,-9000.0,0.00025,30]
[379312062,1755251440715,-9443.0,0.00025,5]
[379312063,1755251440724,-2731.0,0.00025,7]
[379312064,1755251440734,-212670.18384573,0.00025,30]
[379312065,1755251440744,-1001.01022892,0.00025,2]
[379312066,1755251440756,-157.28,0.00025,7]
[379312067,1755251440769,-150.0,0.00025,2]
[379312068,1755251440779,-2697.70006955,0.00025,3]
[379312069,1755251440789,-1000.0,0.00025,20]
[379312070,1755251440799,-150.0,0.00025,50]
[379312071,1755251440812,-153.337718,0.00025,7]
[379312072,1755251440822,-156.9,0.00025,7]
[379312073,1755251440832,-150.9999993,0.00025,5]
[379312074,1755251440847,-1989.247459,0.00025,5]
[379312075,1755251440863,-216.77912109,0.00025,30]
[379312076,1755251440873,-216.77912109,0.00025,30]
[379312077,1755251440883,-417.15472785,0.00025,30]
[379312078,1755251440893,-417.15472785,0.00025,30]
[379312079,1755251440903,-528.28344625,0.00025,30]
[379312080,1755251440913,-528.28344625,0.00025,30]
[379312081,1755251440922,-232.08354597,0.00025,30]
[379312082,1755251440932,-160.0,0.00025,30]
[379312083,1755251440942,-160.0,0.00025,30]
[379312084,1755251440952,-510.0,0.00025002,7]
[379312085,1755251440963,-14930.37073862,0.00025061,2]
[379312086,1755251440973,-350.0,0.00025068,2]
[379312087,1755251440984,-1000.0,0.00025068,2]
[379312088,1755251440995,-350.0,0.00025068,2]
[379312089,1755251441005,-408.0,0.00025085,2]
[379312090,1755251441015,-2152.0,0.00025085,2]
[379312091,1755251441026,-546.0,0.00025105,2]
[379312092,1755251441035,-1612.99,0.0002511,2]
[379312093,1755251441045,-860.0,0.00025112,2]
[379312094,1755251441055,-175.36504967,0.00025125,30]
[379312095,1755251441065,-823.0,0.00025162,2]
[379312096,1755251441075,-218.84,0.00025184,7]
[379312097,1755251441085,-151.0,0.00025206,2]
[379312098,1755251441095,-644.0,0.00025206,2]
[379312099,1755251441105,-459.93330802,0.00025207,2]
[379312100,1755251441115,-13623.09916723,0.00025274,2]
[379312101,1755251441126,-3500.0,0.00025354,2]
[379312102,1755251441136,-546.0,0.00025379,2]
[379312103,1755251441147,-300.0,0.00025421,2]
[379312104,1755251441157,-3000.0,0.00025445,2]
[379312105,1755251441167,-650.0,0.00025445,2]
[379312106,1755251441177,-3000.0,0.00025445,2]
[379312107,1755251441188,-224.42205432,0.0002548,2]
[379312108,1755251441198,-644.0,0.0002548,2]
[379312109,1755251441209,-14930.37073862,0.00025577,3]
[379312110,1755251441219,-155.18,0.00025587,7]
[379312111,1755251441229,-450.0,0.00025616,2]
[379312112,1755251441239,-288.09296961,0.00025616,2]
[379312113,1755251441250,-857.88,0.00025629,7]
[379312114,1755251441260,-13623.09916723,0.00025649,2]
[379312115,1755251441270,-546.0,0.00025653,2]
[379312116,1755251441280,-960.0,0.0002566,2]
[379312117,1755251441290,-155.18,0.00025676,7]
[379312118,1755251441300,-162.0,0.000257,7]
[379312119,1755251441310,-11402.18,0.000257,7]
[379312120,1755251441320,-166.1,0.00025713,7]
[379312121,1755251441331,-857.88,0.00025729,7]
[379312122,1755251441341,-1334.0,0.00025747,9]
[379312123,1755251441352,-644.0,0.00025754,2]
[379312124,1755251441362,-200.0,0.00025762,20]
[379312125,1755251441373,-200.0,0.00025762,20]
[379312126,1755251441384,-200.0,0.00025762,20]
[379312127,1755251441396,-200.0,0.00025762,20]
[379312128,1755251441405,-200.0,0.00025762,20]
[379312129,1755251441415,-200.0,0.00025762,20]
[379312130,1755251441425,-200.0,0.00025762,20]
[379312132,1755251441435,-200.0,0.00025762,20]
[379312134,1755251441445,-200.0,0.00025762,20]
[379312135,1755251441455,-200.0,0.00025762,20]
[379312137,1755251441464,-200.0,0.00025762,20]
[379312139,1755251441474,-200.0,0.00025762,20]
[379312141,1755251441484,-200.0,0.00025762,20]
[379312143,1755251441494,-200.0,0.00025762,20]
[379312145,1755251441503,-200.0,0.00025762,20]
[379312147,1755251441513,-292.0,0.00025762,20]
[379312149,1755251441523,-155.18,0.00025776,7]
[379312151,1755251441533,-216.72950928,0.00025785,2]
[379312153,1755251441542,-843.29866057,0.000258,7]
[379312155,1755251441552,-216.72950928,0.000258,7]
[379312157,1755251441563,-857.88,0.00025829,7]
[379312159,1755251441573,-664.75031037,0.00025839,2]
[379312161,1755251441583,-166.1,0.00025848,7]
[379312162,1755251441593,-155.18,0.00025876,7]
[379312163,1755251441603,-4000.0,0.00025902,2]
[379312164,1755251441613,-546.0,0.00025927,2]
[379312165,1755251441623,-857.88,0.00025929,7]
[379312166,1755251441633,-166.1,0.00025948,7]
[379312167,1755251441643,-450.0,0.00025968,2]
[379312168,1755251441655,-155.18,0.00025976,7]
[379312169,1755251441665,-750.0,0.00025993,2]
[379312170,1755251441675,-578.90618298,0.00025993,2]
[379312171,1755251441686,-2068.0102728,0.00025993,2]
[379312172,1755251441697,-232.03317797,0.00026,7]
[379312173,1755251441706,-160.0,0.00026,7]
[379312174,1755251441716,-160.0,0.00026,3]
[379312175,1755251441726,-307.53,0.00026,7]
[379312176,1755251441736,-33912.76554353,0.00026,7]
[379312177,1755251441746,-1655.70170722,0.00026,30]
[379312178,1755251441755,-216.77912109,0.00026,3]
[379312179,1755251441767,-216.77912109,0.00026,7]
[379312180,1755251441778,-160.0,0.00026,3]
[379312181,1755251441788,-160.0,0.00026,7]
[379312182,1755251441799,-13623.09916723,0.00026023,2]
[379312183,1755251441808,-1000.0,0.00026027,2]
[379312184,1755251441818,-644.0,0.00026028,2]
[379312185,1755251441828,-857.88,0.00026029,7]
[379312186,1755251441839,-166.11019522,0.00026048,7]
[379312187,1755251441850,-155.18,0.00026076,7]
[379312188,1755251441859,-14930.37073862,0.00026094,4]
[379312189,1755251441869,-12836.53,0.000261,2]
[379312190,1755251441879,-20463.55,0.000261,7]
[379312191,1755251441891,-857.88,0.00026129,7]
[379312192,1755251441901,-2016.24,0.00026156,2]
[379312193,1755251441911,-191.21460571,0.0002616,2]
[379312194,1755251441920,-150.43843871,0.00026164,2]
[379312195,1755251441931,-1500.0,0.00026164,2]
[379312196,1755251441940,-155.18,0.00026176,7]
[379312197,1755251441951,-546.0,0.000262,2]
[379312198,1755251441962,-1060.0,0.00026208,2]
[379312199,1755251441971,-857.88,0.00026229,7]
[379312200,1755251441981,-155.18,0.00026276,7]
[379312201,1755251441992,-644.0,0.00026302,2]
[379312202,1755251442002,-857.88,0.00026329,7]
[379312203,1755251442012,-155.18,0.00026376,7]
[379312204,1755251442022,-13623.09916723,0.00026397,2]
[379312205,1755251442033,-200.0,0.000264,15]
[379312206,1755251442043,-857.88,0.00026429,7]
[379312207,1755251442054,-2000.0,0.00026438,2]
[379312208,1755251442064,-4500.0,0.0002645,2]
[379312209,1755251442075,-546.0,0.00026474,2]
[379312210,1755251442085,-155.18,0.00026476,7]
[379312211,1755251442095,-600.0,0.00026516,2]
[379312212,1755251442107,-857.88,0.00026529,7]
[379312213,1755251442118,-850.0,0.00026541,2]
[379312214,1755251442129,-644.0,0.00026576,2]
[379312215,1755251442140,-155.18,0.00026576,7]
[379312216,1755251442151,-14930.37073862,0.0002661,5]
[379312217,1755251442162,-857.88,0.00026629,7]
[379312218,1755251442173,-2066.84,0.00026651,2]
[379312219,1755251442184,-155.18,0.00026676,7]
[379312220,1755251442194,-857.88,0.00026729,7]
[379312221,1755251442205,-546.0,0.00026748,2]
[379312222,1755251442216,-1160.0,0.00026756,2]
[379312223,1755251442226,-13623.09916723,0.00026772,2]
[379312224,1755251442237,-155.18,0.00026776,7]
[379312225,1755251442248,-857.88,0.00026829,7]
[379312226,1755251442259,-1761.11509113,0.00026849,2]
[379312227,1755251442269,-644.0,0.0002685,2]
[379312228,1755251442280,-155.18,0.00026876,7]
[379312229,1755251442289,-857.88,0.00026929,7]
[379312230,1755251442300,-500.0,0.00026962,2]
[379312231,1755251442311,-155.18,0.00026976,7]
[379312232,1755251442321,-5000.0,0.00026998,2]
[379312233,1755251442331,-11402.18,0.00027,7]
[379312234,1755251442342,-150.20951377,0.00027,60]
[379312236,1755251442352,-546.0,0.00027022,2]
[379312238,1755251442362,-18273.66182755,0.00027029,2]
[379312240,1755251442372,-857.88,0.00027029,7]
[379312241,1755251442382,-750.0,0.00027064,2]
[379312242,1755251442393,-155.18,0.00027076,7]
[379312243,1755251442403,-950.0,0.00027089,2]
[379312244,1755251442414,-165.0,0.000271,7]
[379312245,1755251442424,-103.97766755,0.00027124,2]
[379312246,1755251442697,-540.02233245,0.00027124,2]
[379312247,1755251442707,-14930.37073862,0.00027126,7]
[379312248,1755251442716,-857.88,0.00027129,7]
[379312249,1755251442726,-13623.09916723,0.00027146,2]
[379312251,1755251442736,-155.18,0.00027176,7]
[379312252,1755251442746,-12836.53,0.000272,2]
[379312253,1755251442756,-2419.49,0.00027202,2]
[379312254,1755251442767,-857.88,0.00027229,7]
[379312255,1755251442777,-2000.0,0.0002726,2]
[379312256,1755251442787,-155.18,0.00027276,7]
[379312257,1755251442799,-564.78847168,0.00027296,2]
[379312258,1755251442810,-307.53,0.000273,7]
[379312259,1755251442820,-20463.55,0.000273,7]
[379312260,1755251442830,-1260.0,0.00027304,2]
[379312261,1755251442839,-857.88,0.00027329,7]
[379312262,1755251442850,-155.18,0.00027376,7]
[379312263,1755251442860,-501.35699267,0.00027397,2]
[379312264,1755251442870,-168.47297417,0.00027397,2]
[379312265,1755251442881,-500.0,0.00027397,5]
[379312266,1755251442890,-160.15986408,0.00027397,5]
[379312267,1755251442900,-300.41800461,0.00027397,5]
[379312268,1755251442910,-644.0,0.00027398,2]
[379312269,1755251442919,-170.68181922,0.000274,4]
[379312270,1755251442929,-170.68181922,0.000274,4]
[379312271,1755251442939,-170.68181922,0.000274,4]
[379312272,1755251442948,-170.68181922,0.000274,4]
[379312273,1755251442958,-170.68181922,0.000274,4]
[379312274,1755251442968,-170.68,0.000274,4]
[379312275,1755251442977,-159.30303127,0.000274,4]
[379312276,1755251442987,-159.30303127,0.000274,4]
[379312277,1755251442997,-159.30303127,0.000274,4]
[379312278,1755251443007,-159.30303127,0.000274,4]
[379312279,1755251443016,-159.30303127,0.000274,4]
[379312280,1755251443027,-159.30303127,0.000274,4]
[379312281,1755251443037,-159.30303127,0.000274,4]
[379312282,1755251443047,-159.30303127,0.000274,4]
[379312283,1755251443056,-159.30303127,0.000274,4]
[379312284,1755251443066,-159.30303127,0.000274,4]
[379312285,1755251443075,-159.30303127,0.000274,4]
[379312286,1755251443085,-159.30303127,0.000274,4]
[379312287,1755251443095,-159.30303127,0.000274,4]
[379312288,1755251443104,-159.30303127,0.000274,4]
[379312289,1755251443113,-159.3,0.000274,4]
[379312290,1755251443124,-1152.0,0.00027414,2]
[379312291,1755251443134,-857.88,0.00027429,15]
[379312292,1755251443144,-155.18,0.00027476,15]
[379312293,1755251443154,-1478.26308117,0.000275,4]
[379312294,1755251443164,-2930.24839857,0.0002752,2]
[379312295,1755251443263,-664.75031037,0.00027054,2]
[379312296,1755251443274,-10692.85076866,0.0002752,2]
[379312297,1755251443283,-857.88,0.00027529,15]
[379312298,1755251443293,-12057.63755682,0.00027529,10]
[379312299,1755251443358,1034.8478359,0.00018431,2]
[379312361,1755251445913,-500.0,0.00019897,2]
[379312363,1755251445922,-472.0,0.00019897,2]
[379312379,1755251446076,-190.90007021,0.00019897,2]
[379312381,1755251446085,-662.90007021,0.00019897,2]
[379312383,1755251446094,-180.20839329,0.00019897,2]
[379313832,1755252024245,449.0,0.00019,2]
[379313895,1755252285294,736.69605078,0.00018978,2]
[379313919,1755252445123,-500.0,0.00019001,2]
[379313920,1755252445145,-460.0,0.00019178,2]
[379313921,1755252445165,-28.65545234,0.00019194,2]
[379313925,1755252507608,150.0,0.000189,2]
[379313967,1755252632122,-326.32370229,0.00019081,2]
[379313968,1755252632132,-179.33548377,0.00019194,2]
[379313969,1755252632141,-548.20763435,0.00019202,2]
[379313970,1755252632159,-528.79236565,0.00019202,2]
[379313971,1755252632169,-300.0,0.00019203,2]
[379313973,1755252632180,-300.0,0.00019203,2]
[379313974,1755252632201,-272.0,0.00019203,2]
[379313975,1755252632223,-300.0,0.00019203,2]
[379313977,1755252632243,-300.0,0.00019203,2]
[379313978,1755252632263,-35.86120131,0.00019203,2]
[379314009,1755252637954,-264.13879869,0.00019203,2]
[379314010,1755252637964,-460.0,0.00019205,2]
[379314012,1755252637975,-1143.66982779,0.00019206,2]
[379314014,1755252637986,-500.79876873,0.00019206,2]
[379314021,1755252638009,-6017.15361763,0.00019206,2]
[379314022,1755252638021,-12380.16827013,0.00019206,2]
[379314023,1755252638032,-5641.79842951,0.00019206,2]
[379314026,1755252638048,-6328.83994221,0.00019206,2]
[379314029,1755252638057,-508.55691207,0.00019352,2]
[379314031,1755252638067,-460.0,0.00019479,2]
[379314033,1755252638077,-200.0,0.00019587,20]
[379314035,1755252638086,-200.0,0.00019587,20]
[379314036,1755252638095,-200.0,0.00019587,20]
[379314037,1755252638106,-200.0,0.00019587,20]
[379314038,1755252638115,-200.0,0.00019587,20]
[379314040,1755252638124,-200.0,0.00019587,20]
[379314042,1755252638134,-519.67047086,0.00019663,2]
[379314044,1755252638143,-460.0,0.00019753,2]
[379314046,1755252638152,-528.28344625,0.00019773,2]
[379314048,1755252638161,-179.233004,0.00019863,2]
[379314049,1755252638170,-160.0,0.00019894,2]
[379314050,1755252638179,-160.0,0.00019894,2]
[379314051,1755252638191,-160.0,0.00019894,2]
[379314052,1755252638201,-232.08354597,0.00019894,2]
[379314053,1755252638210,-216.77912109,0.00019894,2]
[379314054,1755252638220,-843.47195277,0.00019894,2]
[379314055,1755252638231,-151.0,0.00019899,2]
[379314056,1755252638241,-151.0,0.00019899,2]
[379314057,1755252638250,-151.0,0.00019899,2]
[379314058,1755252638259,-151.0,0.00019899,2]
[379314059,1755252638268,-151.0,0.00019899,2]
[379314060,1755252638278,-151.0,0.00019899,2]
[379314061,1755252638287,-151.0,0.00019899,2]
[379314062,1755252638295,-151.0,0.00019899,2]
[379314063,1755252638304,-151.0,0.00019899,2]
[379314064,1755252638314,-151.0,0.00019899,2]
[379314065,1755252638323,-151.0,0.00019899,2]
[379314066,1755252638333,-151.0,0.00019899,2]
[379314067,1755252638342,-215.986036,0.00019899,2]
[379314068,1755252638352,-8052.94936392,0.000199,2]
[379314069,1755252638361,-216.949974,0.00019999,2]
[379314070,1755252638370,-216.949974,0.00019999,2]
[379314071,1755252638379,-216.949974,0.0002,2]
[379314072,1755252638390,-216.949974,0.0002,2]
[379314073,1755252638400,-260.16411721,0.00020001,2]
[379314074,1755252638412,-239.83588279,0.00020001,2]
[379314075,1755252638422,-460.0,0.00020027,2]
[379314076,1755252638431,-500.0,0.00020027,2]
[379314077,1755252638441,-304.76411721,0.00020272,2]
[379314108,1755252646221,-383.49340965,0.00020271,2]
[379314146,1755252809192,150.0,0.000189,2]
[379314203,1755253110508,239.57982113,0.000189,2]
[379314242,1755253411845,159.71988075,0.000189,2]
[379314251,1755253503446,3383.38508327,0.00019,2]
[379314280,1755253637128,-2933.24835697,0.0001912,2]
[379314281,1755253638095,-234.070848,0.0001912,2]
[379314299,1755253683860,4277.51811757,0.00028331,60]
[379314312,1755253712783,4260.27620008,0.00028331,60]
[379314366,1755253828121,1694.3721415,0.00018987,2]
[379314389,1755253832384,-243.5824174,0.00019205,2]
[379314390,1755253832394,-1200.0,0.00019899,2]
[379314391,1755253832404,-300.0,0.00019899,2]
[379314392,1755253832413,-300.0,0.00019899,2]
[379314393,1755253832422,-300.0,0.00019899,2]
[379314394,1755253832431,-232.08354597,0.00019899,2]
[379314395,1755253832440,-216.77912109,0.00019899,2]
[379314396,1755253832449,-160.0,0.00019899,2]
[379314397,1755253832458,-10660.95454942,0.000199,2]
[379314398,1755253832468,-5008.56702,0.0002,2]
[379314399,1755253832478,-21162.41422299,0.00020069,2]
[379314400,1755253832487,-161.90326953,0.00020165,2]
[379314401,1755253832497,-460.0,0.00020166,2]
[379314402,1755253832508,-437.12062924,0.00020264,2]
[379314403,1755253832517,-160.0,0.00020268,2]
[379314404,1755253832526,-843.47195277,0.00020268,2]
[379314405,1755253832535,-160.0,0.00020268,2]
[379314406,1755253832544,-500.0,0.00020271,2]
[379314407,1755253832553,-200.0,0.00020297,20]
[379314408,1755253832562,-200.0,0.00020297,20]
[379314409,1755253832572,-200.0,0.00020297,20]
[379314410,1755253832581,-200.0,0.00020297,20]
[379314411,1755253832590,-200.0,0.00020297,20]
[379314412,1755253832599,-200.0,0.00020297,20]
[379314413,1755253832609,-200.0,0.00020297,20]
[379314414,1755253832618,-200.0,0.00020297,20]
[379314415,1755253832627,-308.0,0.000203,2]
[379314416,1755253832637,-2000.0,0.0002035,2]
[379314417,1755253832647,-216.949974,0.00020416,2]
[379314418,1755253832660,-216.949974,0.00020416,2]
[379314419,1755253832669,-10660.95454913,0.00020416,2]
[379314420,1755253832678,-460.0,0.0002044,2]
[379314421,1755253832688,-500.0,0.00020545,2]
[379314422,1755253832698,-460.0,0.00020714,2]
[379314423,1755253832707,-500.0,0.00020819,2]
[379314424,1755253832716,-567.84,0.0002091,3]
[379314425,1755253832725,-283.92,0.0002091,3]
[379314426,1755253832737,-851.76,0.0002091,3]
[379314427,1755253832747,-500.0,0.00020919,2]
[379314428,1755253832758,-726.12422105,0.00020919,2]
[379314429,1755253832768,-726.12422105,0.00020919,2]
[379314430,1755253832777,-500.0,0.00020919,2]
[379314431,1755253832787,-726.12422105,0.00020919,2]
[379314432,1755253832796,-309.21105056,0.00020919,2]
[379314433,1755253832808,-326.03283155,0.00020919,2]
[379314434,1755253832819,-90.88033894,0.00020919,2]
[379314435,1755253832829,-418.74151463,0.00020919,2]
[379314436,1755253832839,-726.12422105,0.00020919,2]
[379314437,1755253832848,-726.12422105,0.00020919,2]
[379314438,1755253832858,-726.12422105,0.00020919,2]
[379314439,1755253832867,-726.12422105,0.00020919,2]
[379314440,1755253832876,-726.12422105,0.00020919,2]
[379314441,1755253832885,-500.0,0.00020919,2]
[379314442,1755253832894,-382.63733203,0.00020919,2]
[379314445,1755253838203,-585.31892363,0.0001912,2]
[379314446,1755253838212,-500.0,0.00020263,2]
[379314447,1755253838222,-500.0,0.00020263,2]
[379314448,1755253838231,-500.0,0.00020263,2]
[379314449,1755253838240,-500.0,0.00020263,2]
[379314450,1755253838250,-500.0,0.00020263,2]
[379314451,1755253838259,-385.95723365,0.00020263,2]
[379314452,1755253838269,-500.0,0.00020263,2]
[379314454,1755253838278,-500.0,0.00020263,2]
[379314455,1755253838287,-163.1670676,0.00020263,2]
[379314456,1755253838297,-500.0,0.00020263,2]
[379314458,1755253838306,-500.0,0.00020263,2]
[379314460,1755253838315,-500.0,0.00020263,2]
[379314462,1755253838324,-500.0,0.00020263,2]
[379314464,1755253838333,-422.33938017,0.00020263,2]
[379314480,1755253838472,-500.0,0.00020263,2]
[379314482,1755253838482,-342.7883491,0.00020263,2]
[379314485,1755253838494,-157.2116509,0.00020263,2]
[379314487,1755253838503,-362.38633456,0.00020263,2]
[379314489,1755253838513,-500.0,0.00020263,2]
[379314491,1755253838522,-468.7841373,0.00020263,2]
[379314493,1755253838532,-500.0,0.00020263,2]
[379314495,1755253838541,-500.0,0.00020263,2]
[379314497,1755253838550,-500.0,0.00020263,2]
[379314499,1755253838559,-500.0,0.00020263,2]
[379314501,1755253838568,-500.0,0.00020263,2]
[379314503,1755253838577,-500.0,0.00020263,2]
[379314505,1755253838586,-291.08484535,0.00020263,2]
[379314507,1755253838595,-500.0,0.00020263,2]
[379314509,1755253838604,-500.0,0.00020263,2]
[379314511,1755253838614,-500.0,0.00020263,2]
[379314512,1755253838623,-179.88231111,0.00020263,2]
[379314514,1755253838632,-500.0,0.00020263,2]
[379314516,1755253838641,-412.52548196,0.00020263,2]
[379314518,1755253838655,-260.37524657,0.00020263,2]
[379314521,1755253838666,-239.62475343,0.00020263,2]
[379314523,1755253838675,-424.50264652,0.00020263,2]
[379314525,1755253838686,-75.49735348,0.00020263,2]
[379314527,1755253838696,-500.0,0.00020263,2]
[379314529,1755253838705,-500.0,0.00020263,2]
[379314531,1755253838714,-35.42084046,0.00020263,2]
[379314533,1755253838727,-464.57915954,0.00020263,2]
[379314535,1755253838737,-500.0,0.00020263,2]
[379314537,1755253838746,-271.11216355,0.00020263,2]
[379314539,1755253838756,-500.0,0.00020263,2]
[379314541,1755253838766,-500.0,0.00020263,2]
[379314543,1755253838775,-85.26464252,0.00020263,2]
[379314545,1755253838787,-414.73535748,0.00020263,2]
[379314547,1755253838797,-180.24869146,0.00020263,2]
[379314549,1755253838808,-319.75130854,0.00020263,2]
[379314551,1755253838819,-242.09647925,0.00020263,2]
[379314554,1755253838830,-257.90352075,0.00020263,2]
[379314556,1755253838839,-629.19133968,0.00020263,2]
[379314558,1755253838849,-149.74188667,0.00020263,2]
[379314695,1755253840164,-350.25811333,0.00020263,2]
[379314697,1755253840174,-500.0,0.00020263,2]
[379314699,1755253840183,-500.0,0.00020263,2]
[379314701,1755253840193,-500.0,0.00020263,2]
[379314703,1755253840203,-18.72410093,0.00020263,2]
[379318935,1755253887917,551.0,0.000301,120]
[379321334,1755254014557,150.0,0.000189,2]
[379321360,1755254315614,150.0,0.000189,2]
[379321385,1755254583141,181.4661497,0.0003,120]
[379321419,1755254849132,-151.79739073,0.00019799,2]
[379321420,1755254849152,-171.2973167,0.00019863,2]
[379321421,1755254849173,-1200.0,0.00019897,2]
[379321422,1755254849193,-1200.0,0.00019897,2]